[Event "Kragero Resort B 2020"]
[Site "Kragero"]
[Date "2020.02.23"]
[Round "9.4"]
[White "Hausken, Andreas Skrede"]
[Black "Sekkingstad, Thomas"]
[Result "1-0"]
[ECO "B12"]
[WhiteElo "1856"]
[BlackElo "1758"]
[Annotator "NA"]
[PlyCount "89"]
[EventDate "2020.02.19"]
[EventType "swiss"]
[EventCountry "NOR"]
[SourceTitle "playchess.com"]
[Source "ChessBase"]
[SourceQuality "1"]
[TimeControl "5400+30"]

1. e4 {[%emt 0:00:00]} c6 {[%emt 0:00:00]} 2. d4 {[%emt 0:00:00]} d5 {[%emt 0:00:00]} 3. e5 {[%emt 0:00:00]} Bf5 {[%emt 0:00:14]} 4. h4 {[%emt 0:00:00]} h6 {[%emt 0:00:19]} 5. Bd3 {[%emt 0:00:27]} Bxd3 {[%emt 0:00:10]} 6. Qxd3 {[%emt 0:00:05]} e6 {[%emt 0:00:05]} 7. Nf3 {[%emt 0:00:15]} c5 {[%emt 0:00:04]} 8. c4 {[%emt 0:03:19]} Nc6 {[%emt 0:06:28]} 9. cxd5 {[%emt 0:05:54]} Qxd5 {[%emt 0:01:30]} 10. Nc3 {[%emt 0:00:18]} Qd7 {[%emt 0:00:07]} 11. Be3 {[%emt 0:03:08]} cxd4 {[%emt 0:13:49]} 12. Bxd4 {[%emt 0:00:34]} Bc5 {[%emt 0:01:01]} 13. Rd1 $11 {[%emt 0:02:01]} Bxd4 {[%emt 0:27:13]} 14. Nxd4 {[%emt 0:01:24]} Rd8 {[%emt 0:00:24]} 15. Ncb5 {[%emt 0:13:12]} Nxe5 {[%emt 0:05:10]} 16. Qg3 {[%emt 0:00:47]} f6 {[%emt 0:00:27]} 17. f4 {[%emt 0:00:55]} Nc6 {[%emt 0:01:13]} 18. Qg6+ {[%emt 0:01:29]} Kf8 {[%emt 0:00:47]} 19. O-O {[%emt 0:03:26]} Nge7 {[%emt 0:00:48]} 20. Qg4 {[%emt 0:02:29]} f5 {[%emt 0:17:04]} 21. Qe2 {[%emt 0:01:52]} Kf7 {[%emt 0:00:14]} 22. Nxf5 {[%emt 0:03:27]} Nxf5 {[%emt 0:02:47]} 23. Rxd7+ {[%emt 0:00:10]} Rxd7 {[%emt 0:00:02]} 24. Re1 {[%emt 0:03:41]} Ncd4 {[%emt 0:00:11]} 25. Nxd4 {[%emt 0:00:46]} Nxd4 {[%emt 0:00:06]} 26. Qh5+ {[%emt 0:00:16]} g6 {[%emt 0:00:48]} 27. Qe5 {[%emt 0:00:18]} Rhd8 {[%emt 0:00:07]} 28. h5 {[%emt 0:00:31]} Rd5 {[%emt 0:00:17]} 29. hxg6+ {[%emt 0:00:10]} Kxg6 {[%emt 0:00:05]} 30. Qe4+ {[%emt 0:01:05]} Kg7 {[%emt 0:01:09]} 31. Re3 {[%emt 0:03:57]} Nf5 {[%emt 0:02:07]} 32. Rb3 {[%emt 0:00:17]} Kf6 {[%emt 0:00:24]} 33. Qb4 {[%emt 0:02:26]} R8d7 {[%emt 0:01:24]} 34. Qf8+ {[%emt 0:01:28]} Kg6 {[%emt 0:02:09]} 35. Qg8+ {[%emt 0:00:12]} Kf6 {[%emt 0:00:16]} 36. Rc3 {[%emt 0:00:22]} Rd8 {[%emt 0:03:22]} 37. Qg4 {[%emt 0:00:16]} R5d7 {[%emt 0:03:07]} 38. Rb3 {[%emt 0:01:55]} Rg7 {[%emt 0:00:25]} 39. Qe2 {[%emt 0:00:55]} Rd5 {[%emt 0:00:10]} 40. Qf2 {[%emt 0:00:59]} Rd4 {[%emt 0:02:37]} 41. Rb5 {[%emt 0:01:33]} Rd1+ {[%emt 0:00:44]} 42. Kh2 {[%emt 0:00:06]} a6 {[%emt 0:00:19]} 43. Rxf5+ {[%emt 0:05:28]} exf5 {[%emt 0:01:13]} 44. Qb6+ {[%emt 0:00:05]} Kf7 {[%emt 0:00:18]} 45. Qb3+ {[%emt 0:00:48]} 1-0

[Event "Kragero Resort B 2020"]
[Site "Kragero"]
[Date "2020.02.23"]
[Round "9.5"]
[White "Rynning, Rune Kleiven"]
[Black "Strand, Amund Pihl"]
[Result "0-1"]
[ECO "B44"]
[WhiteElo "1625"]
[BlackElo "1806"]
[Annotator "NA"]
[PlyCount "88"]
[EventDate "2020.02.19"]
[EventType "swiss"]
[EventCountry "NOR"]
[SourceTitle "playchess.com"]
[Source "ChessBase"]
[SourceQuality "1"]
[TimeControl "5400+30"]

1. e4 {[%emt 0:00:00]} c5 {[%emt 0:00:48]} 2. Nf3 {[%emt 0:00:00]} e6 {[%emt 0:00:08]} 3. c4 {[%emt 0:00:00]} Nc6 {[%emt 0:00:09]} 4. d4 {[%emt 0:00:09]} cxd4 {[%emt 0:00:09]} 5. Nxd4 {[%emt 0:00:09]} Nf6 {[%emt 0:00:07]} 6. Nc3 {[%emt 0:08:25]} Bb4 {[%emt 0:00:09]} 7. Nxc6 {[%emt 0:03:41]} bxc6 {[%emt 0:00:08]} 8. Bg5 {[%emt 0:07:29]} e5 {[%emt 0:04:11]} 9. Qc2 {[%emt 0:15:21]} O-O {[%emt 0:04:22]} 10. Be2 $11 {[%emt 0:00:55]} Be7 {[%emt 0:12:15]} 11. O-O {[%emt 0:00:46]} Bb7 {[%emt 0:01:52]} 12. Rfd1 {[%emt 0:02:01]} Qc7 {[%emt 0:01:06]} 13. Rd3 {[%emt 0:08:40]} h6 {[%emt 0:08:38]} 14. Bh4 {[%emt 0:00:28]} Rad8 {[%emt 0:05:15]} 15. Rad1 {[%emt 0:00:14]} Rfe8 {[%emt 0:06:36]} 16. Qd2 {[%emt 0:02:27]} Bc8 {[%emt 0:00:43]} 17. Bxf6 {[%emt 0:05:07]} Bxf6 {[%emt 0:00:14]} 18. Bg4 {[%emt 0:00:14]} Bg5 {[%emt 0:01:18]} 19. Qe2 {[%emt 0:04:42]} Be7 {[%emt 0:05:16]} 20. Qf3 {[%emt 0:06:51]} d6 {[%emt 0:03:21]} 21. Ne2 {[%emt 0:04:55]} Bxg4 {[%emt 0:02:44]} 22. Qxg4 {[%emt 0:00:18]} Qd7 {[%emt 0:00:18]} 23. Qh5 {[%emt 0:04:14]} Qe6 {[%emt 0:05:17]} 24. b3 {[%emt 0:01:24]} Bf8 {[%emt 0:00:18]} 25. Ng3 {[%emt 0:01:32]} g6 {[%emt 0:01:31]} 26. Qe2 {[%emt 0:04:29]} a5 {[%emt 0:00:50]} 27. h4 {[%emt 0:01:13]} h5 {[%emt 0:00:39]} 28. Nf1 {[%emt 0:01:53]} a4 {[%emt 0:00:32]} 29. Ne3 {[%emt 0:04:56]} axb3 {[%emt 0:03:13]} 30. axb3 {[%emt 0:00:01]} Qf6 {[%emt 0:00:53]} 31. g3 {[%emt 0:00:51]} Ra8 {[%emt 0:01:41]} 32. Kg2 {[%emt 0:01:41]} Ra3 {[%emt 0:02:02]} 33. Rh1 {[%emt 0:00:31]} Rb8 {[%emt 0:02:06]} 34. g4 {[%emt 0:01:47]} Rbxb3 {[%emt 0:04:33]} 35. Rxb3 {[%emt 0:00:33]} Rxb3 {[%emt 0:00:07]} 36. gxh5 {[%emt 0:00:14]} gxh5 {[%emt 0:00:46]} 37. Rh3 {[%emt 0:01:38]} Qf4 {[%emt 0:07:54]} 38. Qxh5 {[%emt 0:02:20]} Qxe4+ {[%emt 0:02:05]} 39. Kh2 {[%emt 0:02:55]} Bg7 {[%emt 0:04:57]} 40. Rg3 {[%emt 0:00:37]} Rb1 {[%emt 0:02:43]} 41. Rg2 {[%emt 0:02:44]} Qf4+ {[%emt 0:00:38]} 42. Rg3 {[%emt 0:00:41]} Qxf2+ {[%emt 0:00:10]} 43. Kh3 {[%emt 0:00:50]} Rh1+ {[%emt 0:00:31]} 44. Kg4 {[%emt 0:00:05]} Qf4# {[%emt 0:00:07]} 0-1

[Event "Kragero Resort B 2020"]
[Site "Kragero"]
[Date "2020.02.23"]
[Round "9.6"]
[White "Opseth, Oliver"]
[Black "Digernes, Mikael"]
[Result "1-0"]
[ECO "B18"]
[WhiteElo "1894"]
[BlackElo "1748"]
[Annotator "NA"]
[PlyCount "99"]
[EventDate "2020.02.19"]
[EventType "swiss"]
[EventCountry "NOR"]
[SourceTitle "playchess.com"]
[Source "ChessBase"]
[SourceQuality "1"]
[TimeControl "5400+30"]

1. e4 {[%emt 0:00:00]} c6 {[%emt 0:00:00]} 2. d4 {[%emt 0:00:00]} d5 {[%emt 0:00:00]} 3. Nc3 {[%emt 0:01:00]} dxe4 {[%emt 0:00:07]} 4. Nxe4 {[%emt 0:00:08]} Bf5 {[%emt 0:00:15]} 5. Ng3 {[%emt 0:00:23]} Bg6 {[%emt 0:00:14]} 6. Nf3 {[%emt 0:00:09]} Nd7 {[%emt 0:00:14]} 7. Bd3 {[%emt 0:01:23]} Bxd3 {[%emt 0:00:45]} 8. Qxd3 {[%emt 0:00:05]} Ngf6 {[%emt 0:00:51]} 9. Bg5 {[%emt 0:01:45]} e6 {[%emt 0:01:34]} 10. O-O {[%emt 0:03:21]} Be7 {[%emt 0:02:10]} 11. Rad1 {[%emt 0:01:35]} O-O {[%emt 0:02:21]} 12. Ne5 {[%emt 0:00:23] B18: Classical Caro-Kann: 4...Bf5 sidelines.} h6 {[%emt 0:07:33]} 13. Bc1 {[%emt 0:03:43]} Qc7 {[%emt 0:03:38]} 14. Rfe1 {[%emt 0:01:52] [#]} Rad8 $146 {[%emt 0:01:32]} ({Predecessor:} 14... Nxe5 15. dxe5 Nd5 16. c4 Nb6 17. b3 Rad8 18. Qe3 Bb4 19. Rf1 Qe7 20. h3 Rd7 {1-0 (52) Demirtas,S (1551)-Sat,B (1251) Manavgat 2016}) 15. Qf3 {[%emt 0:01:15]} c5 {[%emt 0:06:01]} 16. c3 {[%emt 0:04:00]} (16. Nxd7 $11 {keeps the balance.} Rxd7 17. dxc5) 16... cxd4 {[%emt 0:09:25]} 17. cxd4 {[%emt 0:00:05]} Nd5 {[%emt 0:01:54]} 18. Nh5 {[%emt 0:04:57]} N7f6 {[%emt 0:09:25]} 19. Bxh6 $1 {[%emt 0:09:36]} Nxh5 {[%emt 0:13:24]} 20. Qxh5 {[%emt 0:00:07]} gxh6 {[%emt 0:01:49]} 21. Qxh6 {[%emt 0:00:25]} Bf6 {[%emt 0:10:58]} 22. Rd3 {[%emt 0:00:29]} Bg7 {[%emt 0:00:16]} 23. Rg3 {[%emt 0:01:16]} f6 {[%emt 0:01:21]} 24. Re4 {[%emt 0:01:20] [#]} Rc8 $4 {[%emt 0:06:55]} (24... Nf4 $1 $19 {[%mdl 512]} 25. Qxf4 (25. Rxf4 Qc1#) 25... fxe5 26. Qxe5 Qxe5 27. Rxe5 Rxd4) 25. Rxg7+ {[%emt 0:01:16]} Qxg7 {[%emt 0:00:42]} 26. Rg4 {[%emt 0:00:23]} Qxg4 {[%emt 0:03:51]} 27. Nxg4 {[%emt 0:00:11]} Rf7 {[%emt 0:02:16]} 28. h4 {[%emt 0:00:31]} Rc4 $18 {[%emt 0:02:33]} 29. h5 {[%emt 0:02:46]} Rxd4 {[%emt 0:01:23]} 30. Qg6+ {[%emt 0:01:31]} Kf8 {[%emt 0:00:13]} 31. h6 {[%emt 0:00:24]} Nf4 {[%emt 0:01:42]} 32. Qc2 {[%emt 0:00:42]} Rdd7 {[%emt 0:06:49]} 33. g3 {[%emt 0:06:32]} Rc7 {[%emt 0:01:20]} 34. Qe4 {[%emt 0:03:40]} Nh3+ {[%emt 0:01:13]} 35. Kg2 {[%emt 0:00:08]} f5 {[%emt 0:01:28]} 36. Qb4+ {[%emt 0:00:42]} Kg8 {[%emt 0:00:14]} 37. Ne5 {[%emt 0:00:45]} Ng5 {[%emt 0:01:29]} 38. Nxf7 {[%emt 0:00:23]} Nxf7 {[%emt 0:00:01]} 39. Qd4 {[%emt 0:00:51]} Nxh6 {[%emt 0:00:59]} 40. Qd8+ {[%emt 0:00:07]} Kf7 {[%emt 0:00:12]} 41. Qxc7+ {[%emt 0:00:04]} Kf6 {[%emt 0:00:08]} 42. Qxb7 {[%emt 0:00:07]} a5 {[%emt 0:00:13]} 43. b4 {[%emt 0:00:13]} axb4 {[%emt 0:00:09]} 44. Qxb4 {[%emt 0:00:05]} e5 {[%emt 0:00:08]} 45. a4 {[%emt 0:00:07]} Nf7 {[%emt 0:00:24]} 46. a5 {[%emt 0:00:07]} Nd8 {[%emt 0:00:26]} 47. a6 {[%emt 0:00:15]} f4 {[%emt 0:01:00]} 48. gxf4 {[%emt 0:00:12]} e4 {[%emt 0:00:18]} 49. a7 {[%emt 0:00:09]} Ke6 {[%emt 0:00:51]} 50. Qb6+ {[%emt 0:00:14]} 1-0

[Event "Kragero Resort B 2020"]
[Site "Kragero"]
[Date "2020.02.23"]
[Round "9.7"]
[White "Aasen, Joakim"]
[Black "Aasen, Kjetil Myrlid"]
[Result "1/2-1/2"]
[ECO "B19"]
[WhiteElo "1745"]
[BlackElo "1892"]
[Annotator "NA RC"]
[PlyCount "63"]
[EventDate "2020.02.19"]
[EventType "swiss"]
[EventCountry "NOR"]
[SourceTitle "playchess.com"]
[Source "ChessBase"]
[SourceQuality "1"]
[TimeControl "5400+30"]

{[%evp 8,63,24,28,19,8,22,15,29,4,2,0,32767,32767,32767,32767,32767,32767,32767,32767,32767,32767,32767,32767,32767,32767,32767,32767,0,0,35,32767,9,32767,32767,0,0,8,0,32767,32767,32767,32767,14,32767,32767,30,22,12,3,4,0,0,4,11,50,68,81]} 1. e4 {[%emt 0:00:00]} c6 {[%emt 0:00:00]} 2. d4 {[%emt 0:00:00]} d5 {[%emt 0:00:00]} 3. Nc3 {[%emt 0:00:00]} dxe4 {[%emt 0:00:00]} 4. Nxe4 {[%emt 0:00:00]} Bf5 {[%emt 0:00:06]} 5. Ng3 {[%emt 0:00:00]} Bg6 $1 {[%emt 0:00:15]} 6. h4 {[%emt 0:00:09]} h6 {[%emt 0:00:08]} 7. Nf3 {[%emt 0:00:09]} Nf6 {[%emt 0:00:09]} 8. h5 {[%emt 0:00:08]} Bh7 {[%emt 0:00:06]} 9. Bd3 {[%emt 0:00:07]} Bxd3 {[%emt 0:00:16]} 10. Qxd3 {[%emt 0:00:11]} Nbd7 {[%emt 0:00:21]} 11. Ne4 {[%emt 0:00:18]} Nxe4 {[%emt 0:00:08]} 12. Qxe4 {[%emt 0:00:08]} Nf6 {[%emt 0:00:11]} 13. Qe2 {[%emt 0:00:09]} e6 {[%emt 0:00:32]} 14. Bd2 {[%emt 0:00:20]} Qc7 {[%emt 0:00:38]} 15. O-O-O {[%emt 0:00:55]} O-O-O {[%emt 0:00:21] B19: Classical Caro-Kann: 4...Bf5 main line.} 16. c3 {[%emt 0:00:23]} Bd6 {[%emt 0:00:18]} 17. g3 {[%emt 0:00:23]} Rhe8 {[%emt 0:01:18] [#]} 18. Kb1 $146 {[%emt 0:01:41]} ({Predecessor:} 18. c4 c5 19. Bc3 cxd4 20. Nxd4 a6 21. Nb3 Kb8 22. Rd2 Re7 23. c5 {1-0 (23) Prokopp,H-Kiss,G ICCF corr 1988}) 18... Kb8 {[%emt 0:00:14]} 19. Rde1 {[%emt 0:00:16]} c5 {[%emt 0:00:36]} 20. dxc5 {[%emt 0:01:23]} Bxc5 {[%emt 0:00:10]} 21. Bf4 {[%emt 0:00:46]} Bd6 {[%emt 0:00:14]} 22. Bxd6 {[%emt 0:00:27]} Rxd6 {[%emt 0:00:17]} 23. Rd1 {[%emt 0:01:34]} Rxd1+ {[%emt 0:00:22]} 24. Rxd1 {[%emt 0:01:10]} Rd8 {[%emt 0:00:14]} 25. Rxd8+ {[%emt 0:00:57]} Qxd8 {[%emt 0:00:07]} 26. Ne5 {[%emt 0:00:47]} Qc7 {[%emt 0:00:45]} 27. g4 {[%emt 0:00:49]} Nd5 {[%emt 0:00:51]} 28. f3 {[%emt 0:01:50]} f6 {[%emt 0:00:20]} 29. Nc4 {[%emt 0:00:23]} e5 {[%emt 0:01:07]} 30. Qd3 {[%emt 0:00:26]} Nf4 {[%emt 0:01:17]} 31. Qd6 {[%emt 0:00:37]} Qxd6 {[%emt 0:00:32]} 32. Nxd6 $16 {[%emt 0:00:12]} 1/2-1/2

[Event "Kragero Resort B 2020"]
[Site "Kragero"]
[Date "2020.02.23"]
[Round "9.8"]
[White "Bernstein, Jonas August"]
[Black "Amundsen, Ask"]
[Result "1-0"]
[ECO "D14"]
[WhiteElo "1798"]
[BlackElo "1707"]
[Annotator "NA"]
[PlyCount "127"]
[EventDate "2020.02.19"]
[EventType "swiss"]
[EventCountry "NOR"]
[SourceTitle "playchess.com"]
[Source "ChessBase"]
[SourceQuality "1"]
[TimeControl "5400+30"]

1. d4 {[%emt 0:00:00]} Nf6 {[%emt 0:00:00]} 2. Nf3 {[%emt 0:00:21]} d5 {[%emt 0:00:00]} 3. c4 {[%emt 0:00:00]} c6 {[%emt 0:00:03]} 4. cxd5 {[%emt 0:00:29]} cxd5 {[%emt 0:00:07]} 5. Nc3 {[%emt 0:00:15]} Nc6 {[%emt 0:00:41]} 6. Bf4 {[%emt 0:00:19]} Bf5 {[%emt 0:01:37]} 7. Qb3 {[%emt 0:01:20]} Qd7 {[%emt 0:04:44]} 8. e3 {[%emt 0:04:37]} a6 {[%emt 0:04:35]} 9. Ne5 {[%emt 0:07:29]} Nxe5 {[%emt 0:00:49]} 10. dxe5 {[%emt 0:00:08]} Ne4 {[%emt 0:04:10]} 11. Qxd5 {[%emt 0:03:24]} Nxc3 {[%emt 0:01:39]} 12. Qxd7+ {[%emt 0:00:09]} Kxd7 {[%emt 0:00:40]} 13. bxc3 {[%emt 0:00:09]} Rc8 {[%emt 0:01:54]} 14. Rd1+ {[%emt 0:05:56]} Ke8 {[%emt 0:00:24]} 15. Bd3 {[%emt 0:02:07]} e6 {[%emt 0:07:30]} 16. e4 {[%emt 0:06:32]} Bg6 {[%emt 0:01:23]} 17. c4 {[%emt 0:04:56]} Bb4+ {[%emt 0:01:56]} 18. Ke2 {[%emt 0:00:24]} Ke7 {[%emt 0:00:27]} 19. Rb1 {[%emt 0:02:58]} a5 {[%emt 0:08:19]} 20. Bd2 {[%emt 0:07:37]} Ra8 {[%emt 0:15:36]} 21. a4 {[%emt 0:13:41]} Ra7 {[%emt 0:06:10]} 22. Bxb4+ {[%emt 0:02:42]} axb4 {[%emt 0:00:04]} 23. Rxb4 {[%emt 0:00:08]} Rha8 {[%emt 0:00:23]} 24. Rhb1 {[%emt 0:07:01]} Rxa4 {[%emt 0:01:09]} 25. Rxa4 {[%emt 0:06:23]} Rxa4 {[%emt 0:00:08]} 26. Rxb7+ {[%emt 0:00:04]} Kd8 {[%emt 0:00:52]} 27. Rb2 {[%emt 0:08:05]} Kc7 {[%emt 0:01:23]} 28. Ke3 {[%emt 0:02:04]} Kc6 {[%emt 0:02:23]} 29. Kd4 {[%emt 0:01:03]} Ra5 {[%emt 0:02:16]} 30. f3 {[%emt 0:00:59]} f6 {[%emt 0:00:52]} 31. f4 {[%emt 0:01:27]} Bf7 {[%emt 0:01:25]} 32. Bb1 {[%emt 0:02:18]} Ra6 {[%emt 0:06:08]} 33. Ba2 {[%emt 0:04:07]} h5 {[%emt 0:01:46]} 34. g3 {[%emt 0:00:42]} Ra8 {[%emt 0:01:05]} 35. Bb3 {[%emt 0:00:53]} Rd8+ {[%emt 0:01:33]} 36. Ke3 {[%emt 0:01:59]} Kc5 {[%emt 0:00:43]} 37. Rd2 {[%emt 0:04:01]} Rxd2 {[%emt 0:00:46]} 38. Kxd2 {[%emt 0:00:09]} Kd4 {[%emt 0:02:30]} 39. exf6 {[%emt 0:00:20]} gxf6 {[%emt 0:00:06]} 40. c5 {[%emt 0:01:02]} Kxc5 {[%emt 0:06:36]} 41. f5 {[%emt 0:00:38]} Kd6 {[%emt 0:00:14]} 42. fxe6 {[%emt 0:00:18]} Bxe6 {[%emt 0:00:05]} 43. Bxe6 {[%emt 0:00:19]} Kxe6 {[%emt 0:00:05]} 44. Ke3 {[%emt 0:00:03]} Ke5 {[%emt 0:07:27]} 45. Kf3 {[%emt 0:00:20]} f5 {[%emt 0:00:22]} 46. exf5 {[%emt 0:00:11]} Kxf5 {[%emt 0:00:06]} 47. h3 {[%emt 0:00:42]} Ke5 {[%emt 0:02:34]} 48. Ke3 {[%emt 0:00:58]} Kf5 {[%emt 0:00:47]} 49. Kd4 {[%emt 0:00:31]} h4 {[%emt 0:06:57]} 50. g4+ {[%emt 0:00:10]} Kf4 {[%emt 0:00:03]} 51. Kd3 {[%emt 0:01:10]} Kg3 {[%emt 0:01:16]} 52. g5 {[%emt 0:00:56]} Kxh3 {[%emt 0:00:04]} 53. g6 {[%emt 0:00:23]} Kh2 {[%emt 0:00:04]} 54. g7 {[%emt 0:00:41]} h3 {[%emt 0:00:04]} 55. Ke2 {[%emt 0:01:08]} Kh1 {[%emt 0:01:49]} 56. Kf1 {[%emt 0:00:39]} h2 {[%emt 0:00:09]} 57. Ke2 {[%emt 0:00:24]} Kg1 {[%emt 0:00:43]} 58. g8=Q+ {[%emt 0:00:16]} Kh1 {[%emt 0:00:11]} 59. Qd5+ {[%emt 0:00:26]} Kg1 {[%emt 0:00:39]} 60. Qd4+ {[%emt 0:00:44]} Kh1 {[%emt 0:00:44]} 61. Qe4+ {[%emt 0:00:15]} Kg1 {[%emt 0:00:08]} 62. Qg4+ {[%emt 0:00:42]} Kh1 {[%emt 0:00:09]} 63. Qf3+ {[%emt 0:00:05]} Kg1 {[%emt 0:00:17]} 64. Qf1# {[%emt 0:00:04]} 1-0

[Event "Kragero Resort B 2020"]
[Site "Kragero"]
[Date "2020.02.23"]
[Round "9.9"]
[White "Shehzad, Alisha"]
[Black "Sejersted, Adrian"]
[Result "1/2-1/2"]
[ECO "B01"]
[WhiteElo "1705"]
[BlackElo "1788"]
[Annotator "NA"]
[PlyCount "192"]
[EventDate "2020.02.19"]
[EventType "swiss"]
[EventCountry "NOR"]
[SourceTitle "playchess.com"]
[Source "ChessBase"]
[SourceQuality "1"]
[TimeControl "5400+30"]

1. e4 {[%emt 0:00:00]} d5 {[%emt 0:00:00]} 2. exd5 {[%emt 0:00:00]} Qxd5 {[%emt 0:00:00]} 3. Nc3 {[%emt 0:00:00]} Qd8 {[%emt 0:00:00]} 4. d4 {[%emt 0:00:00]} Nf6 {[%emt 0:00:14]} 5. Nf3 {[%emt 0:00:01]} Bg4 {[%emt 0:00:08]} 6. h3 {[%emt 0:00:08]} Bxf3 {[%emt 0:00:05]} 7. Qxf3 {[%emt 0:00:08]} c6 {[%emt 0:00:05]} 8. Bf4 {[%emt 0:00:33]} e6 {[%emt 0:00:12]} 9. O-O-O {[%emt 0:00:35]} Bd6 {[%emt 0:00:44]} 10. Bxd6 {[%emt 0:05:46]} Qxd6 {[%emt 0:00:11]} 11. Ne4 {[%emt 0:00:36]} Nxe4 {[%emt 0:00:50]} 12. Qxe4 {[%emt 0:06:20]} Nd7 {[%emt 0:02:12]} 13. Be2 {[%emt 0:06:40]} Nf6 {[%emt 0:00:15]} 14. Qe5 {[%emt 0:01:58]} O-O-O {[%emt 0:01:00]} 15. Qxd6 {[%emt 0:01:11]} Rxd6 {[%emt 0:00:11]} 16. Bf3 {[%emt 0:00:32]} Rhd8 {[%emt 0:01:01]} 17. c3 {[%emt 0:00:40]} Kc7 {[%emt 0:02:20]} 18. Kc2 {[%emt 0:02:35]} b5 {[%emt 0:00:13]} 19. a3 {[%emt 0:01:22]} a5 {[%emt 0:00:55]} 20. b4 {[%emt 0:02:32]} Kb6 {[%emt 0:02:27]} 21. Rhe1 {[%emt 0:01:35]} Ra8 {[%emt 0:02:05]} 22. Ra1 {[%emt 0:01:34]} Rd7 {[%emt 0:01:38]} 23. g3 {[%emt 0:06:01]} Rda7 {[%emt 0:00:42]} 24. Kb2 {[%emt 0:00:29]} Nd5 {[%emt 0:00:40]} 25. Bxd5 {[%emt 0:00:47]} cxd5 {[%emt 0:00:32]} 26. bxa5+ {[%emt 0:13:56]} Rxa5 {[%emt 0:01:06]} 27. f4 {[%emt 0:01:48]} g6 {[%emt 0:00:24]} 28. g4 {[%emt 0:00:37]} Kc6 {[%emt 0:03:31]} 29. h4 {[%emt 0:05:36]} h6 {[%emt 0:05:25]} 30. g5 {[%emt 0:05:38]} hxg5 {[%emt 0:04:15]} 31. hxg5 {[%emt 0:00:29]} Ra4 {[%emt 0:01:27]} 32. Rh1 {[%emt 0:01:21]} R8a7 {[%emt 0:00:20]} 33. Rhe1 {[%emt 0:02:04]} Kb6 {[%emt 0:01:46]} 34. Rh1 {[%emt 0:02:18]} Rc4 {[%emt 0:00:34]} 35. Rh3 {[%emt 0:01:14]} Ka5 {[%emt 0:00:57]} 36. Re3 {[%emt 0:00:52]} Ka4 {[%emt 0:00:41]} 37. Rh3 {[%emt 0:00:48]} Rc8 {[%emt 0:01:45]} 38. Rh2 {[%emt 0:03:48]} Rac7 {[%emt 0:00:11]} 39. Rh3 {[%emt 0:00:16]} Ka5 {[%emt 0:01:33]} 40. Re1 {[%emt 0:00:54]} Kb6 {[%emt 0:00:32]} 41. Rc1 {[%emt 0:00:38]} Ra7 {[%emt 0:00:29]} 42. Ra1 {[%emt 0:00:37]} Kc6 {[%emt 0:00:13]} 43. Rd1 {[%emt 0:00:43]} Kd6 {[%emt 0:00:17]} 44. Re1 {[%emt 0:00:40]} Ke7 {[%emt 0:00:49]} 45. Rh2 {[%emt 0:01:02]} Rca8 {[%emt 0:01:05]} 46. Ra1 {[%emt 0:00:18]} Rf8 {[%emt 0:02:40]} 47. Rh7 {[%emt 0:00:29]} Raa8 {[%emt 0:01:28]} 48. Rah1 {[%emt 0:00:44]} Kd6 {[%emt 0:00:46]} 49. R7h6 {[%emt 0:01:08]} Rg8 {[%emt 0:00:37]} 50. Rg1 {[%emt 0:00:45]} Raf8 {[%emt 0:00:25]} 51. Kb3 {[%emt 0:01:49]} f6 {[%emt 0:01:52]} 52. gxf6 {[%emt 0:00:57]} Rxf6 {[%emt 0:00:18]} 53. Rg4 {[%emt 0:00:51]} Rg7 {[%emt 0:04:12]} 54. Kb4 {[%emt 0:00:43]} Kc6 {[%emt 0:00:22]} 55. Rh3 {[%emt 0:00:50]} Rf8 {[%emt 0:02:03]} 56. Rhg3 {[%emt 0:00:52]} Re7 {[%emt 0:04:16]} 57. Rg1 {[%emt 0:03:25]} Kd6 {[%emt 0:10:06]} 58. R1g2 {[%emt 0:02:12]} Ra7 {[%emt 0:01:46]} 59. Rg1 {[%emt 0:01:20]} Ra4+ {[%emt 0:00:16]} 60. Kb3 {[%emt 0:00:27]} Rc4 {[%emt 0:02:53]} 61. R1g3 {[%emt 0:00:52]} Ra4 {[%emt 0:02:51]} 62. Rg1 {[%emt 0:00:17]} Ra7 {[%emt 0:00:12]} 63. Re1 {[%emt 0:00:55]} Rf6 {[%emt 0:00:49]} 64. Reg1 {[%emt 0:01:17]} Rc7 {[%emt 0:01:08]} 65. R1g2 {[%emt 0:00:31]} Rcf7 {[%emt 0:01:24]} 66. Rxg6 {[%emt 0:00:41]} Rxf4 {[%emt 0:02:15]} 67. Re2 {[%emt 0:00:25]} Re4 {[%emt 0:00:51]} 68. Rxe4 {[%emt 0:01:50]} dxe4 {[%emt 0:01:04]} 69. Rg2 {[%emt 0:01:42]} Kd5 {[%emt 0:01:08]} 70. Kb4 {[%emt 0:00:41]} Rf3 {[%emt 0:01:45]} 71. Rg5+ {[%emt 0:01:35]} Rf5 {[%emt 0:00:14]} 72. Rg2 {[%emt 0:00:48]} e3 {[%emt 0:01:15]} 73. Kxb5 {[%emt 0:03:06]} e5 {[%emt 0:05:28]} 74. dxe5 {[%emt 0:00:41]} Rf2 {[%emt 0:00:39]} 75. Rg1 {[%emt 0:01:09]} Rc2 {[%emt 0:01:19]} 76. Kb4 {[%emt 0:01:00]} Rb2+ {[%emt 0:00:38]} 77. Ka5 {[%emt 0:01:04]} Kxe5 {[%emt 0:01:12]} 78. Re1 {[%emt 0:01:04]} e2 {[%emt 0:00:28]} 79. a4 {[%emt 0:00:48]} Kd5 {[%emt 0:00:18]} 80. Ka6 {[%emt 0:00:51]} Kc4 {[%emt 0:01:00]} 81. a5 {[%emt 0:01:18]} Kxc3 {[%emt 0:00:14]} 82. Ka7 {[%emt 0:00:25]} Kc4 {[%emt 0:03:40]} 83. a6 {[%emt 0:00:50]} Kc5 {[%emt 0:01:12]} 84. Ka8 {[%emt 0:00:40]} Kc6 {[%emt 0:00:47]} 85. a7 {[%emt 0:01:15]} Rd2 {[%emt 0:01:54]} 86. Rc1+ {[%emt 0:00:19]} Kb6 {[%emt 0:01:30]} 87. Rb1+ {[%emt 0:00:12]} Kc7 {[%emt 0:00:28]} 88. Rc1+ {[%emt 0:00:06]} Kd7 {[%emt 0:00:31]} 89. Kb8 {[%emt 0:00:33]} Rb2+ {[%emt 0:00:41]} 90. Ka8 {[%emt 0:00:24]} Rb4 {[%emt 0:02:17]} 91. Re1 {[%emt 0:00:53]} Re4 {[%emt 0:00:31]} 92. Kb7 {[%emt 0:00:19]} Rb4+ {[%emt 0:00:14]} 93. Ka6 {[%emt 0:01:05]} Kc6 {[%emt 0:00:02]} 94. Ka5 Kd7 {[%emt 0:00:02]} 95. Ka6 Ra4+ 96. Kb7 {[%emt 0:00:02]} Rb4+ {[%emt 0:00:01]} 1/2-1/2